{"text_format":"1","workbook":"xlsx","n_sheets":3,"sheets":["Order Sheet","Fabrics","Formula"],"not_rendered":{"charts":0,"images":1,"macros":1,"external_links":0,"defined_names":9,"comments":1,"pivot_tables":0},"unopened":[],"bounds":{"document_bytes":16777216,"sheet_cells":100000,"rows_first":2000,"rows_last":500,"rows_between":2000,"halvings":0,"cell_chars":16384,"cell_head_chars":4096},"cells_cut":0,"cells_raw":0,"read":"whole","date_system":"1900"}

{"sheet":"Order Sheet","index":0,"n_rows":7,"n_cols":15,"rows_kept":7,"cut":false,"hidden":false,"merged":[[0,2,0,3]]}
[null,null,"Commercial Quote/Order Form",null,null,null,null,null,"Type","Fabric","Color","Supplier","Code"]
[null,null,null,null,null,null,null,"Fabric 1:","Blockout"]
[null,null,null,null,null,null,null,"Fabric 2:","Screen"]
[null,"Job Number :",null,"XX",null,null,null,"Fabric 3:","Blockout"]
[null,null,null,null,null,null,null,"Fabric 4:","Screen"]
[]
["Width","Drop","Fabric Description","Room Description 12 Characters Max","Mount Type","Roll Type","Control Side","Control Color","Chain Type","Chain Length","Bottom Rail","Bottom Rail Color","Helper Type","Bracket / System","Other Options"]

{"sheet":"Fabrics","index":1,"n_rows":51,"n_cols":36,"rows_kept":51,"cut":false,"hidden":false,"merged":[[0,4,0,43]]}
["Sort Fabric Name A->Z","TYPE","FABRIC NAME ","SUPPLIER","Colors"]
[null,"Blockout","Aston","Shaw","Almond","Bark","Buff","Chalk","Fig","Ink","Moss","Oatcake"]
[null,"Blockout","Bauhaus","Basford","Dawn","Dove","Dusk","Pepper","Shell","Smoke"]
[null,"Blockout","Boston Blockout","Wilson","Buffalo","Charcoal","Chinchilla","Marshmello","Quartz"," Shark","Silver","Stone"]
[null,"Translucent","Boston Translucent","Wilson","Buffalo","Charcoal","Chinchilla","Marshmellow","Quartz","Shark","Silver","Stone"]
[null,"Blockout","Centro","Hunter Douglas","Barley","Charcoal Black","Dark Grey","Dove","Midnight","Pearl","Shell","Stone","Winter White"]
[null,"Blockout","Clovelly Blockout","Hunter Douglas","Alabaster","Boardwalk","Cobblestone","Granite","Midnight","Paperbark","White"]
[null,"Translucent","Clovelly Transucent","Hunter Douglas","Cobblestone","Midnight","Paperbark","White"]
[null,"Blockout","Concord Blockout","Wilson","Ash","Cafe","Egret","Ivory","Pebble","Slate","Stone"]
[null,"Translucent","Concord Translucent","Wilson","Ash","Cafe","Egret","Ivory","Pebble","Slate","Stone"]
[null,"Blockout","Duoblock","Shaw","Aztec","Basalt","Dove","Iron","Nova","Salt","Shadow","Stella","Tempo"]
[null,"Screen","DuoScreen","Shaw","Blue Grey","Charcoal","Charcoal Grey","Charcoal Slate","Dune Grey","Ice White","White","White Grey","White Linen","White Stone"]
[null,"Screen","E-Screen 10% Open-Virtual Screen","Hunter Douglas","Charcoal","Charcoal Cocoa","Pearl","White","White Linen"]
[null,"Screen","E-Screen 5% Open-Clear Screen","Hunter Douglas","Charcoal","Charcoal Cocoa","Charcoal Grey","Pearl Linen","White","White Linen","White Pearl"]
[null,"Blockout","Icon","Shaw","Angel","Arena","Calico","Canyon","Earth","Flint","Manilla","Night","Spritz","Stone"]
[null,"Blockout","Icon FR","Shaw","Ceylon","Flora","Harbour","Jet","Leather","Liquorice","Maritime","Osprey","Papyrus","Sail","Sculpture","Sea Mist","Solar","Stonewash","Taurus"]
[null,"Blockout","Karma","Shaw","Cliff","Dew","Frost","Glade","Haze","Magma","Moonscape","Ocean","Petrol","Rock","Sandstone","Shell"]
[null,"Blockout","LeReve Blockout","Shaw","Chalk","Concrete","Crystal","Graphite","Marble","Mink","Onyx","Pewter","Sand","Shell"]
[null,"Translucent","LeReve Translucent","Shaw","Chalk","Concrete","Crystal","Graphite","Marble","Mink","Onyx","Pewter","Sand","Shell"]
[null,"Translucent","Linesque Trans","Shaw","Chestnut","Delta","Granite","Hazel","Levi","Lily","Oatcake","Owl","Stonewash","Trellis","Wicker","Winter"]
[null,"Blockout","LinesqueBO","Shaw","Almond","Aspen","Blanco","Breeze","Denim","Dove","Fig","Fleece","Fossil","Raffia","Soba","Vine"]
[null,"Blockout","Mantra Blockout","Shaw","Cotton","Flint","Opal","Parchment","Pebble","Seagrass","Seed Pearl","Sesame","Shale"]
[null,"Translucent","Mantra Translucent","Shaw","Cotton","Parchment","Pebble","Seagrass","Seed Pearl","Sesame","Shale"]
[null,"Blockout","Matka","Basford","Alabaster","Chalk","Granite","Marble","Onyx","Putty"]
[null,"Screen","M-Screen 5% Open-Clear Screen","Hunter Douglas","Charcoal","Charcoal Grey","Charcoal Sable","White","White Linen","White Stone",null,null,null,null,"     "]
[null,"Screen","Net Series","Hunter Douglas","Ash Linen","Ash Midnight Bronze","Charcoal","Charcoal Bronze","Charcoal Grey","Charcoal Light Grey","Grey","Midnight Magnetic Stone","Midnight Tan Stone","Pearl Magnetic Bronze","Pearl White","Sable Ash Pearl","Sable Shale","Wh Sable Gy","Wh Wh Sable","White","White Grey","White Linen","White Pearl","White Sable"]
[null,"Blockout","Palau Blockout","Hunter Douglas","Dusk","Linen","Midnight","Sable","Shale","White","White Pearl"]
[null,"Translucent","Palm Beach Translucent","Shaw","Angora","Calico","Eve","Fennel","Fresh","Horizon","Ink","Jumbo","Melody","Monsoon","Pearl","Steel"]
[null,"Blockout","PalmBeach","Shaw","Dusk","Gull","Horizon","Ink","Iron","Jasmine","Lyric","Melody","Merino","Monsoon","Pearl","Porpoise","Quartz","Steel","SummerStorm","Thunder","Urban"]
[null,"Screen","Picturesque 3% Open-Privacy Screen","Blindware","Bronze","Charcoal","Charcoal Apricot","Charcoal Bronze","Charcoal Grey","Charcoal Sand","Grey","Linen","White","White Grey","White Linen","White Stone"]
[null,"Screen","Picturesque 5% Open-Clear Screen","Blindware","Bronze","Charcoal","Charcoal Apricot","Charcoal Bronze","Charcoal Grey","Charcoal Sand","rey","Linen","White","White Grey","White Linen","White Stone"]
[null,"Blockout","Quebec","Basford","Chalk","Gunmetal","Ice","Midnight","Shale","Tussock"]
[null,"Blockout","Resene Origin","Basford","Alabaster","Baltic Sea","Bokara Grey","Concrete","Masala","Parchment","Pearl Lusta","Pravada","Rice Cake","Silver Chalice","Thorndon Cream","Truffle"]
[null,"Blockout","Sassari","Hunter Douglas","Capo","Costa","Mores","Rosel","Travo"]
[null,"Screen","Sheerweave4300","Shaw","Charcoal","Charcoal Gold","Sandstone","Slate Stone","White","White Stone"]
[null,"Screen","Sheerweave4500","Shaw","Charcoal","Charcoal Bronze","Charcoal Gold","Charcoal Grey","Linen","Sandstone","White","White Grey","White Linen","White Stone"]
[null,"Screen","Sheerweave4510","Shaw","Charcoal","Charcoal Grey","White","White Grey","White Linen","White Stone"]
[null,"Blockout","Signum BO","Blindware","Anthracite","Basalt","Charcoal","Coffee","Graphite","Grass Silk","Mist","Oak","Steel","Storm","Umber","White"]
[null,"Screen","Signum Metalised","Blindware","Anthracite","Basalt","Charcoal","Coffee","Graphite","Grass Silk","Mist","Oak","Silver","Steel","Storm","Umber"]
[null,"Screen","Signum Screen","Blindware","Anthracite","Basalt","Charcoal","Coffee","Graphite","Grass Silk","Mist","Oak","Steel","Storm","Umber","White"]
[null,"Blockout","Skye","Shaw","Blazer","Chiffon","Chrome","Earl Grey","Oyster","Porcelain","Raven","Sail","Swan"]
[null,"Screen","Skye Light Filter","Shaw","Blazer","Chiffon","Chrome","Earl Grey","Oyster","Porcelain","Raven","Sail","Swan"]
[null,"Translucent","St Lucia","Basford","Flax","Ivory","Mist","Shale","Stone","White"]
[null,"Blockout","Sunbloc","Blindware","Bright White"," Bronze","Charcoal","Charcoal Apricot","Charcoal Bronze","Charcoal Grey","Charcoal Sand","Grey","Linen","White","White Grey","White Linen","White Stone"]
[null,"Blockout","Tasman","Basford","Beech","Domino","Graphite","Ice","Ivory","Platinum","Shadow","Skyline","Storm"]
[null,"Blockout","Vibe Xtra","Shaw","Alloy","Birch","Bistro","Chateau","Clay","Cloud","Coal","Coconut","Cornsilk","Dune","Ice","Lace","Limestone","Linen","Loft","Mist","Moon","Nimbus","Odessey","Orient","Pool","Porcelain","Pure","Spirit","Starfish","Stone","Storm","Surf","Terrace","Tundra","Umber","Whisper"]
[null,"Blockout","Vibe Xtra Metallic","Shaw","Bronze","Brulee","Lava","Mercury"]
[null,"Screen","Vistaweave Plus","Hunter Douglas","Ash Grey","Cinnamon","Congo","Copper","Cuppacino","Fed Green","Gravel","Grecian Gold","Green Tea","Latte","Night Sky","Oyster","Taupe"]
[null,"Blockout","Willandra Blockout","Hunter Douglas","Charcoal","Ivory","Jarrah","Linnet","Saudi Sand","Slipcast","Smoke","Whisper"]
[null,"Translucent","Willandra Translucent","hunter Douglas","Charcoal","Ivory","Jarrah","Linnet","Saudi Sand","Slipcast","Smoke","Whisper"]
[null,"Blockout","Zen BO","Hunter Douglas","Arabica","Bounty","Cashmere","Chi","Cluster","Element","Embrace","Gazing","Gravity","Greyshee","Illusion","Mario","Martini","Metalcon","Oxide","Pluto","Sahara","Stonehenge","Yen","Zelda"]

{"sheet":"Formula","index":2,"n_rows":60,"n_cols":14,"rows_kept":60,"cut":false,"hidden":false,"merged":[[16,5,16,6],[16,7,16,8],[16,9,16,10],[16,11,16,12]]}
[]
[]
[]
[]
[]
[null,null,null,null,null,null,null,null,null,null,null,null,null,{"$f":"IFERROR(VLOOKUP(G$19,Fabrics!$C$2:$AA$5001,ROWS(Fabrics!$A$1:A4),FALSE),\"\")","v":""}]
[]
[]
[null,null,null,null,null,"User chosen type","User chosen fabric","User chosen type","User chosen fabric","User chosen type","User chosen fabric","User chosen type","User chosen fabric"]
[null,null,null,null,"Range",{"$f":"ROWS(F21:F60)*COLUMNS(F21:F60)-COUNTBLANK(F21:F60)+$F$11","v":47},20,34,20,47,20,34,20]
[null,null,null,null,"Offset",20,null,20,null,20,null,20]
[null,null,null,null,null,{"$f":"\"Formula!F21:\"","v":"Formula!F21:"},{"$f":"\"Formula!G21:\"","v":"Formula!G21:"},{"$f":"\"Formula!H21:\"","v":"Formula!H21:"},{"$f":"\"Formula!I21:\"","v":"Formula!I21:"},{"$f":"\"Formula!J21:\"","v":"Formula!J21:"},{"$f":"\"Formula!K21:\"","v":"Formula!K21:"},{"$f":"\"Formula!L21:\"","v":"Formula!L21:"},{"$f":"\"Formula!M21:\"","v":"Formula!M21:"}]
[null,null,null,null,null,{"$f":"F12&\"F\"&F10","v":"Formula!F21:F47"},{"$f":"G12&\"G\"&G10","v":"Formula!G21:G20"},{"$f":"H12&\"H\"&H10","v":"Formula!H21:H34"},{"$f":"I12&\"I\"&I10","v":"Formula!I21:I20"},{"$f":"J12&\"J\"&J10","v":"Formula!J21:J47"},{"$f":"K12&\"K\"&K10","v":"Formula!K21:K20"},{"$f":"L12&\"L\"&L10","v":"Formula!L21:L34"},{"$f":"M12&\"M\"&M10","v":"Formula!M21:M20"}]
[]
[]
[]
[null,null,null,null,null,1,null,2,null,3,null,4]
[null,null,null,null,null,"User chosen type","User chosen fabric","User chosen type","User chosen fabric","User chosen type","User chosen fabric","User chosen type","User chosen fabric"]
[null,null,null,null,null,{"$f":"'Order Sheet'!I$2","v":"Blockout"},{"$f":"'Order Sheet'!J$2","v":0},{"$f":"'Order Sheet'!$I$3","v":"Screen"},{"$f":"'Order Sheet'!$J$3","v":0},{"$f":"'Order Sheet'!$I$4","v":"Blockout"},{"$f":"'Order Sheet'!$J$4","v":0},{"$f":"'Order Sheet'!$I$5","v":"Screen"},{"$f":"'Order Sheet'!$J$5","v":0}]
[null,null,null,null,null,"FABRIC","COLOUR","FABRIC","COLOUR","FABRIC","COLOUR","FABRIC","COLOUR"]
[null,null,null,null,null,{"$f":"IFERROR(INDEX(Fabrics!$C$2:$C$5001,SMALL(IF(F$19=Fabrics!$B$2:$B$5001,MATCH(ROW(Fabrics!$B$2:$B$5001),ROW(Fabrics!$B$2:$B5001)),\"\"),ROWS(Fabrics!$A$1:A1))),\"\")","v":"Aston"},{"$f":"IFERROR(VLOOKUP(G$19,Fabrics!$C$2:$AR$5001,ROWS(Fabrics!$A$1:A3),FALSE),\"\")","v":""},{"$f":"IFERROR(INDEX(Fabrics!$C$2:$C$5001,SMALL(IF(H$19=Fabrics!$B$2:$B$5001,MATCH(ROW(Fabrics!$B$2:$B$5001),ROW(Fabrics!$B$2:$B5001)),\"\"),ROWS(Fabrics!$A$1:D1))),\"\")","v":"DuoScreen"},{"$f":"IFERROR(VLOOKUP(I$19,Fabrics!$C$2:$AR$5001,ROWS(Fabrics!$A$1:C3),FALSE),\"\")","v":""},{"$f":"IFERROR(INDEX(Fabrics!$C$2:$C$5001,SMALL(IF(J$19=Fabrics!$B$2:$B$5001,MATCH(ROW(Fabrics!$B$2:$B$5001),ROW(Fabrics!$B$2:$B5001)),\"\"),ROWS(Fabrics!$A$1:E1))),\"\")","v":"Aston"},{"$f":"IFERROR(VLOOKUP(K$19,Fabrics!$C$2:$AR$5001,ROWS(Fabrics!$A$1:E3),FALSE),\"\")","v":""},{"$f":"IFERROR(INDEX(Fabrics!$C$2:$C$5001,SMALL(IF(L$19=Fabrics!$B$2:$B$5001,MATCH(ROW(Fabrics!$B$2:$B$5001),ROW(Fabrics!$B$2:$B5001)),\"\"),ROWS(Fabrics!$A$1:G1))),\"\")","v":"DuoScreen"},{"$f":"IFERROR(VLOOKUP(M$19,Fabrics!$C$2:$AR$5001,ROWS(Fabrics!$A$1:G3),FALSE),\"\")","v":""}]
[null,null,null,null,null,{"$f":"IFERROR(INDEX(Fabrics!$C$2:$C$5001,SMALL(IF(F$19=Fabrics!$B$2:$B$5001,MATCH(ROW(Fabrics!$B$2:$B$5001),ROW(Fabrics!$B$2:$B5002)),\"\"),ROWS(Fabrics!$A$1:A2))),\"\")","v":"Bauhaus"},{"$f":"IFERROR(VLOOKUP(G$19,Fabrics!$C$2:$AR$5001,ROWS(Fabrics!$A$1:A4),FALSE),\"\")","v":""},{"$f":"IFERROR(INDEX(Fabrics!$C$2:$C$5001,SMALL(IF(H$19=Fabrics!$B$2:$B$5001,MATCH(ROW(Fabrics!$B$2:$B$5001),ROW(Fabrics!$B$2:$B5002)),\"\"),ROWS(Fabrics!$A$1:D2))),\"\")","v":"E-Screen 10% Open-Virtual Screen"},{"$f":"IFERROR(VLOOKUP(I$19,Fabrics!$C$2:$AR$5001,ROWS(Fabrics!$A$1:C4),FALSE),\"\")","v":""},{"$f":"IFERROR(INDEX(Fabrics!$C$2:$C$5001,SMALL(IF(J$19=Fabrics!$B$2:$B$5001,MATCH(ROW(Fabrics!$B$2:$B$5001),ROW(Fabrics!$B$2:$B5002)),\"\"),ROWS(Fabrics!$A$1:E2))),\"\")","v":"Bauhaus"},{"$f":"IFERROR(VLOOKUP(K$19,Fabrics!$C$2:$AR$5001,ROWS(Fabrics!$A$1:E4),FALSE),\"\")","v":""},{"$f":"IFERROR(INDEX(Fabrics!$C$2:$C$5001,SMALL(IF(L$19=Fabrics!$B$2:$B$5001,MATCH(ROW(Fabrics!$B$2:$B$5001),ROW(Fabrics!$B$2:$B5002)),\"\"),ROWS(Fabrics!$A$1:G2))),\"\")","v":"E-Screen 10% Open-Virtual Screen"},{"$f":"IFERROR(VLOOKUP(M$19,Fabrics!$C$2:$AR$5001,ROWS(Fabrics!$A$1:G4),FALSE),\"\")","v":""}]
[null,null,null,null,null,{"$f":"IFERROR(INDEX(Fabrics!$C$2:$C$5001,SMALL(IF(F$19=Fabrics!$B$2:$B$5001,MATCH(ROW(Fabrics!$B$2:$B$5001),ROW(Fabrics!$B$2:$B5003)),\"\"),ROWS(Fabrics!$A$1:A3))),\"\")","v":"Boston Blockout"},{"$f":"IFERROR(VLOOKUP(G$19,Fabrics!$C$2:$AR$5001,ROWS(Fabrics!$A$1:A5),FALSE),\"\")","v":""},{"$f":"IFERROR(INDEX(Fabrics!$C$2:$C$5001,SMALL(IF(H$19=Fabrics!$B$2:$B$5001,MATCH(ROW(Fabrics!$B$2:$B$5001),ROW(Fabrics!$B$2:$B5003)),\"\"),ROWS(Fabrics!$A$1:D3))),\"\")","v":"E-Screen 5% Open-Clear Screen"},{"$f":"IFERROR(VLOOKUP(I$19,Fabrics!$C$2:$AR$5001,ROWS(Fabrics!$A$1:C5),FALSE),\"\")","v":""},{"$f":"IFERROR(INDEX(Fabrics!$C$2:$C$5001,SMALL(IF(J$19=Fabrics!$B$2:$B$5001,MATCH(ROW(Fabrics!$B$2:$B$5001),ROW(Fabrics!$B$2:$B5003)),\"\"),ROWS(Fabrics!$A$1:E3))),\"\")","v":"Boston Blockout"},{"$f":"IFERROR(VLOOKUP(K$19,Fabrics!$C$2:$AR$5001,ROWS(Fabrics!$A$1:E5),FALSE),\"\")","v":""},{"$f":"IFERROR(INDEX(Fabrics!$C$2:$C$5001,SMALL(IF(L$19=Fabrics!$B$2:$B$5001,MATCH(ROW(Fabrics!$B$2:$B$5001),ROW(Fabrics!$B$2:$B5003)),\"\"),ROWS(Fabrics!$A$1:G3))),\"\")","v":"E-Screen 5% Open-Clear Screen"},{"$f":"IFERROR(VLOOKUP(M$19,Fabrics!$C$2:$AR$5001,ROWS(Fabrics!$A$1:G5),FALSE),\"\")","v":""}]
[null,null,null,null,null,{"$f":"IFERROR(INDEX(Fabrics!$C$2:$C$5001,SMALL(IF(F$19=Fabrics!$B$2:$B$5001,MATCH(ROW(Fabrics!$B$2:$B$5001),ROW(Fabrics!$B$2:$B5004)),\"\"),ROWS(Fabrics!$A$1:A4))),\"\")","v":"Centro"},{"$f":"IFERROR(VLOOKUP(G$19,Fabrics!$C$2:$AR$5001,ROWS(Fabrics!$A$1:A6),FALSE),\"\")","v":""},{"$f":"IFERROR(INDEX(Fabrics!$C$2:$C$5001,SMALL(IF(H$19=Fabrics!$B$2:$B$5001,MATCH(ROW(Fabrics!$B$2:$B$5001),ROW(Fabrics!$B$2:$B5004)),\"\"),ROWS(Fabrics!$A$1:D4))),\"\")","v":"M-Screen 5% Open-Clear Screen"},{"$f":"IFERROR(VLOOKUP(I$19,Fabrics!$C$2:$AR$5001,ROWS(Fabrics!$A$1:C6),FALSE),\"\")","v":""},{"$f":"IFERROR(INDEX(Fabrics!$C$2:$C$5001,SMALL(IF(J$19=Fabrics!$B$2:$B$5001,MATCH(ROW(Fabrics!$B$2:$B$5001),ROW(Fabrics!$B$2:$B5004)),\"\"),ROWS(Fabrics!$A$1:E4))),\"\")","v":"Centro"},{"$f":"IFERROR(VLOOKUP(K$19,Fabrics!$C$2:$AR$5001,ROWS(Fabrics!$A$1:E6),FALSE),\"\")","v":""},{"$f":"IFERROR(INDEX(Fabrics!$C$2:$C$5001,SMALL(IF(L$19=Fabrics!$B$2:$B$5001,MATCH(ROW(Fabrics!$B$2:$B$5001),ROW(Fabrics!$B$2:$B5004)),\"\"),ROWS(Fabrics!$A$1:G4))),\"\")","v":"M-Screen 5% Open-Clear Screen"},{"$f":"IFERROR(VLOOKUP(M$19,Fabrics!$C$2:$AR$5001,ROWS(Fabrics!$A$1:G6),FALSE),\"\")","v":""}]
[null,null,null,null,null,{"$f":"IFERROR(INDEX(Fabrics!$C$2:$C$5001,SMALL(IF(F$19=Fabrics!$B$2:$B$5001,MATCH(ROW(Fabrics!$B$2:$B$5001),ROW(Fabrics!$B$2:$B5005)),\"\"),ROWS(Fabrics!$A$1:A5))),\"\")","v":"Clovelly Blockout"},{"$f":"IFERROR(VLOOKUP(G$19,Fabrics!$C$2:$AR$5001,ROWS(Fabrics!$A$1:A7),FALSE),\"\")","v":""},{"$f":"IFERROR(INDEX(Fabrics!$C$2:$C$5001,SMALL(IF(H$19=Fabrics!$B$2:$B$5001,MATCH(ROW(Fabrics!$B$2:$B$5001),ROW(Fabrics!$B$2:$B5005)),\"\"),ROWS(Fabrics!$A$1:D5))),\"\")","v":"Net Series"},{"$f":"IFERROR(VLOOKUP(I$19,Fabrics!$C$2:$AR$5001,ROWS(Fabrics!$A$1:C7),FALSE),\"\")","v":""},{"$f":"IFERROR(INDEX(Fabrics!$C$2:$C$5001,SMALL(IF(J$19=Fabrics!$B$2:$B$5001,MATCH(ROW(Fabrics!$B$2:$B$5001),ROW(Fabrics!$B$2:$B5005)),\"\"),ROWS(Fabrics!$A$1:E5))),\"\")","v":"Clovelly Blockout"},{"$f":"IFERROR(VLOOKUP(K$19,Fabrics!$C$2:$AR$5001,ROWS(Fabrics!$A$1:E7),FALSE),\"\")","v":""},{"$f":"IFERROR(INDEX(Fabrics!$C$2:$C$5001,SMALL(IF(L$19=Fabrics!$B$2:$B$5001,MATCH(ROW(Fabrics!$B$2:$B$5001),ROW(Fabrics!$B$2:$B5005)),\"\"),ROWS(Fabrics!$A$1:G5))),\"\")","v":"Net Series"},{"$f":"IFERROR(VLOOKUP(M$19,Fabrics!$C$2:$AR$5001,ROWS(Fabrics!$A$1:G7),FALSE),\"\")","v":""}]
[null,null,null,null,null,{"$f":"IFERROR(INDEX(Fabrics!$C$2:$C$5001,SMALL(IF(F$19=Fabrics!$B$2:$B$5001,MATCH(ROW(Fabrics!$B$2:$B$5001),ROW(Fabrics!$B$2:$B5006)),\"\"),ROWS(Fabrics!$A$1:A6))),\"\")","v":"Concord Blockout"},{"$f":"IFERROR(VLOOKUP(G$19,Fabrics!$C$2:$AR$5001,ROWS(Fabrics!$A$1:A8),FALSE),\"\")","v":""},{"$f":"IFERROR(INDEX(Fabrics!$C$2:$C$5001,SMALL(IF(H$19=Fabrics!$B$2:$B$5001,MATCH(ROW(Fabrics!$B$2:$B$5001),ROW(Fabrics!$B$2:$B5006)),\"\"),ROWS(Fabrics!$A$1:D6))),\"\")","v":"Picturesque 3% Open-Privacy Screen"},{"$f":"IFERROR(VLOOKUP(I$19,Fabrics!$C$2:$AR$5001,ROWS(Fabrics!$A$1:C8),FALSE),\"\")","v":""},{"$f":"IFERROR(INDEX(Fabrics!$C$2:$C$5001,SMALL(IF(J$19=Fabrics!$B$2:$B$5001,MATCH(ROW(Fabrics!$B$2:$B$5001),ROW(Fabrics!$B$2:$B5006)),\"\"),ROWS(Fabrics!$A$1:E6))),\"\")","v":"Concord Blockout"},{"$f":"IFERROR(VLOOKUP(K$19,Fabrics!$C$2:$AR$5001,ROWS(Fabrics!$A$1:E8),FALSE),\"\")","v":""},{"$f":"IFERROR(INDEX(Fabrics!$C$2:$C$5001,SMALL(IF(L$19=Fabrics!$B$2:$B$5001,MATCH(ROW(Fabrics!$B$2:$B$5001),ROW(Fabrics!$B$2:$B5006)),\"\"),ROWS(Fabrics!$A$1:G6))),\"\")","v":"Picturesque 3% Open-Privacy Screen"},{"$f":"IFERROR(VLOOKUP(M$19,Fabrics!$C$2:$AR$5001,ROWS(Fabrics!$A$1:G8),FALSE),\"\")","v":""}]
[null,null,null,null,null,{"$f":"IFERROR(INDEX(Fabrics!$C$2:$C$5001,SMALL(IF(F$19=Fabrics!$B$2:$B$5001,MATCH(ROW(Fabrics!$B$2:$B$5001),ROW(Fabrics!$B$2:$B5007)),\"\"),ROWS(Fabrics!$A$1:A7))),\"\")","v":"Duoblock"},{"$f":"IFERROR(VLOOKUP(G$19,Fabrics!$C$2:$AR$5001,ROWS(Fabrics!$A$1:A9),FALSE),\"\")","v":""},{"$f":"IFERROR(INDEX(Fabrics!$C$2:$C$5001,SMALL(IF(H$19=Fabrics!$B$2:$B$5001,MATCH(ROW(Fabrics!$B$2:$B$5001),ROW(Fabrics!$B$2:$B5007)),\"\"),ROWS(Fabrics!$A$1:D7))),\"\")","v":"Picturesque 5% Open-Clear Screen"},{"$f":"IFERROR(VLOOKUP(I$19,Fabrics!$C$2:$AR$5001,ROWS(Fabrics!$A$1:C9),FALSE),\"\")","v":""},{"$f":"IFERROR(INDEX(Fabrics!$C$2:$C$5001,SMALL(IF(J$19=Fabrics!$B$2:$B$5001,MATCH(ROW(Fabrics!$B$2:$B$5001),ROW(Fabrics!$B$2:$B5007)),\"\"),ROWS(Fabrics!$A$1:E7))),\"\")","v":"Duoblock"},{"$f":"IFERROR(VLOOKUP(K$19,Fabrics!$C$2:$AR$5001,ROWS(Fabrics!$A$1:E9),FALSE),\"\")","v":""},{"$f":"IFERROR(INDEX(Fabrics!$C$2:$C$5001,SMALL(IF(L$19=Fabrics!$B$2:$B$5001,MATCH(ROW(Fabrics!$B$2:$B$5001),ROW(Fabrics!$B$2:$B5007)),\"\"),ROWS(Fabrics!$A$1:G7))),\"\")","v":"Picturesque 5% Open-Clear Screen"},{"$f":"IFERROR(VLOOKUP(M$19,Fabrics!$C$2:$AR$5001,ROWS(Fabrics!$A$1:G9),FALSE),\"\")","v":""}]
[null,null,null,null,null,{"$f":"IFERROR(INDEX(Fabrics!$C$2:$C$5001,SMALL(IF(F$19=Fabrics!$B$2:$B$5001,MATCH(ROW(Fabrics!$B$2:$B$5001),ROW(Fabrics!$B$2:$B5008)),\"\"),ROWS(Fabrics!$A$1:A8))),\"\")","v":"Icon"},{"$f":"IFERROR(VLOOKUP(G$19,Fabrics!$C$2:$AR$5001,ROWS(Fabrics!$A$1:A10),FALSE),\"\")","v":""},{"$f":"IFERROR(INDEX(Fabrics!$C$2:$C$5001,SMALL(IF(H$19=Fabrics!$B$2:$B$5001,MATCH(ROW(Fabrics!$B$2:$B$5001),ROW(Fabrics!$B$2:$B5008)),\"\"),ROWS(Fabrics!$A$1:D8))),\"\")","v":"Sheerweave4300"},{"$f":"IFERROR(VLOOKUP(I$19,Fabrics!$C$2:$AR$5001,ROWS(Fabrics!$A$1:C10),FALSE),\"\")","v":""},{"$f":"IFERROR(INDEX(Fabrics!$C$2:$C$5001,SMALL(IF(J$19=Fabrics!$B$2:$B$5001,MATCH(ROW(Fabrics!$B$2:$B$5001),ROW(Fabrics!$B$2:$B5008)),\"\"),ROWS(Fabrics!$A$1:E8))),\"\")","v":"Icon"},{"$f":"IFERROR(VLOOKUP(K$19,Fabrics!$C$2:$AR$5001,ROWS(Fabrics!$A$1:E10),FALSE),\"\")","v":""},{"$f":"IFERROR(INDEX(Fabrics!$C$2:$C$5001,SMALL(IF(L$19=Fabrics!$B$2:$B$5001,MATCH(ROW(Fabrics!$B$2:$B$5001),ROW(Fabrics!$B$2:$B5008)),\"\"),ROWS(Fabrics!$A$1:G8))),\"\")","v":"Sheerweave4300"},{"$f":"IFERROR(VLOOKUP(M$19,Fabrics!$C$2:$AR$5001,ROWS(Fabrics!$A$1:G10),FALSE),\"\")","v":""}]
[null,null,null,null,null,{"$f":"IFERROR(INDEX(Fabrics!$C$2:$C$5001,SMALL(IF(F$19=Fabrics!$B$2:$B$5001,MATCH(ROW(Fabrics!$B$2:$B$5001),ROW(Fabrics!$B$2:$B5009)),\"\"),ROWS(Fabrics!$A$1:A9))),\"\")","v":"Icon FR"},{"$f":"IFERROR(VLOOKUP(G$19,Fabrics!$C$2:$AR$5001,ROWS(Fabrics!$A$1:A11),FALSE),\"\")","v":""},{"$f":"IFERROR(INDEX(Fabrics!$C$2:$C$5001,SMALL(IF(H$19=Fabrics!$B$2:$B$5001,MATCH(ROW(Fabrics!$B$2:$B$5001),ROW(Fabrics!$B$2:$B5009)),\"\"),ROWS(Fabrics!$A$1:D9))),\"\")","v":"Sheerweave4500"},{"$f":"IFERROR(VLOOKUP(I$19,Fabrics!$C$2:$AR$5001,ROWS(Fabrics!$A$1:C11),FALSE),\"\")","v":""},{"$f":"IFERROR(INDEX(Fabrics!$C$2:$C$5001,SMALL(IF(J$19=Fabrics!$B$2:$B$5001,MATCH(ROW(Fabrics!$B$2:$B$5001),ROW(Fabrics!$B$2:$B5009)),\"\"),ROWS(Fabrics!$A$1:E9))),\"\")","v":"Icon FR"},{"$f":"IFERROR(VLOOKUP(K$19,Fabrics!$C$2:$AR$5001,ROWS(Fabrics!$A$1:E11),FALSE),\"\")","v":""},{"$f":"IFERROR(INDEX(Fabrics!$C$2:$C$5001,SMALL(IF(L$19=Fabrics!$B$2:$B$5001,MATCH(ROW(Fabrics!$B$2:$B$5001),ROW(Fabrics!$B$2:$B5009)),\"\"),ROWS(Fabrics!$A$1:G9))),\"\")","v":"Sheerweave4500"},{"$f":"IFERROR(VLOOKUP(M$19,Fabrics!$C$2:$AR$5001,ROWS(Fabrics!$A$1:G11),FALSE),\"\")","v":""}]
[null,null,null,null,null,{"$f":"IFERROR(INDEX(Fabrics!$C$2:$C$5001,SMALL(IF(F$19=Fabrics!$B$2:$B$5001,MATCH(ROW(Fabrics!$B$2:$B$5001),ROW(Fabrics!$B$2:$B5010)),\"\"),ROWS(Fabrics!$A$1:A10))),\"\")","v":"Karma"},{"$f":"IFERROR(VLOOKUP(G$19,Fabrics!$C$2:$AR$5001,ROWS(Fabrics!$A$1:A12),FALSE),\"\")","v":""},{"$f":"IFERROR(INDEX(Fabrics!$C$2:$C$5001,SMALL(IF(H$19=Fabrics!$B$2:$B$5001,MATCH(ROW(Fabrics!$B$2:$B$5001),ROW(Fabrics!$B$2:$B5010)),\"\"),ROWS(Fabrics!$A$1:D10))),\"\")","v":"Sheerweave4510"},{"$f":"IFERROR(VLOOKUP(I$19,Fabrics!$C$2:$AR$5001,ROWS(Fabrics!$A$1:C12),FALSE),\"\")","v":""},{"$f":"IFERROR(INDEX(Fabrics!$C$2:$C$5001,SMALL(IF(J$19=Fabrics!$B$2:$B$5001,MATCH(ROW(Fabrics!$B$2:$B$5001),ROW(Fabrics!$B$2:$B5010)),\"\"),ROWS(Fabrics!$A$1:E10))),\"\")","v":"Karma"},{"$f":"IFERROR(VLOOKUP(K$19,Fabrics!$C$2:$AR$5001,ROWS(Fabrics!$A$1:E12),FALSE),\"\")","v":""},{"$f":"IFERROR(INDEX(Fabrics!$C$2:$C$5001,SMALL(IF(L$19=Fabrics!$B$2:$B$5001,MATCH(ROW(Fabrics!$B$2:$B$5001),ROW(Fabrics!$B$2:$B5010)),\"\"),ROWS(Fabrics!$A$1:G10))),\"\")","v":"Sheerweave4510"},{"$f":"IFERROR(VLOOKUP(M$19,Fabrics!$C$2:$AR$5001,ROWS(Fabrics!$A$1:G12),FALSE),\"\")","v":""}]
[null,null,null,null,null,{"$f":"IFERROR(INDEX(Fabrics!$C$2:$C$5001,SMALL(IF(F$19=Fabrics!$B$2:$B$5001,MATCH(ROW(Fabrics!$B$2:$B$5001),ROW(Fabrics!$B$2:$B5011)),\"\"),ROWS(Fabrics!$A$1:A11))),\"\")","v":"LeReve Blockout"},{"$f":"IFERROR(VLOOKUP(G$19,Fabrics!$C$2:$AR$5001,ROWS(Fabrics!$A$1:A13),FALSE),\"\")","v":""},{"$f":"IFERROR(INDEX(Fabrics!$C$2:$C$5001,SMALL(IF(H$19=Fabrics!$B$2:$B$5001,MATCH(ROW(Fabrics!$B$2:$B$5001),ROW(Fabrics!$B$2:$B5011)),\"\"),ROWS(Fabrics!$A$1:D11))),\"\")","v":"Signum Metalised"},{"$f":"IFERROR(VLOOKUP(I$19,Fabrics!$C$2:$AR$5001,ROWS(Fabrics!$A$1:C13),FALSE),\"\")","v":""},{"$f":"IFERROR(INDEX(Fabrics!$C$2:$C$5001,SMALL(IF(J$19=Fabrics!$B$2:$B$5001,MATCH(ROW(Fabrics!$B$2:$B$5001),ROW(Fabrics!$B$2:$B5011)),\"\"),ROWS(Fabrics!$A$1:E11))),\"\")","v":"LeReve Blockout"},{"$f":"IFERROR(VLOOKUP(K$19,Fabrics!$C$2:$AR$5001,ROWS(Fabrics!$A$1:E13),FALSE),\"\")","v":""},{"$f":"IFERROR(INDEX(Fabrics!$C$2:$C$5001,SMALL(IF(L$19=Fabrics!$B$2:$B$5001,MATCH(ROW(Fabrics!$B$2:$B$5001),ROW(Fabrics!$B$2:$B5011)),\"\"),ROWS(Fabrics!$A$1:G11))),\"\")","v":"Signum Metalised"},{"$f":"IFERROR(VLOOKUP(M$19,Fabrics!$C$2:$AR$5001,ROWS(Fabrics!$A$1:G13),FALSE),\"\")","v":""}]
[null,null,null,null,null,{"$f":"IFERROR(INDEX(Fabrics!$C$2:$C$5001,SMALL(IF(F$19=Fabrics!$B$2:$B$5001,MATCH(ROW(Fabrics!$B$2:$B$5001),ROW(Fabrics!$B$2:$B5012)),\"\"),ROWS(Fabrics!$A$1:A12))),\"\")","v":"LinesqueBO"},{"$f":"IFERROR(VLOOKUP(G$19,Fabrics!$C$2:$AR$5001,ROWS(Fabrics!$A$1:A14),FALSE),\"\")","v":""},{"$f":"IFERROR(INDEX(Fabrics!$C$2:$C$5001,SMALL(IF(H$19=Fabrics!$B$2:$B$5001,MATCH(ROW(Fabrics!$B$2:$B$5001),ROW(Fabrics!$B$2:$B5012)),\"\"),ROWS(Fabrics!$A$1:D12))),\"\")","v":"Signum Screen"},{"$f":"IFERROR(VLOOKUP(I$19,Fabrics!$C$2:$AR$5001,ROWS(Fabrics!$A$1:C14),FALSE),\"\")","v":""},{"$f":"IFERROR(INDEX(Fabrics!$C$2:$C$5001,SMALL(IF(J$19=Fabrics!$B$2:$B$5001,MATCH(ROW(Fabrics!$B$2:$B$5001),ROW(Fabrics!$B$2:$B5012)),\"\"),ROWS(Fabrics!$A$1:E12))),\"\")","v":"LinesqueBO"},{"$f":"IFERROR(VLOOKUP(K$19,Fabrics!$C$2:$AR$5001,ROWS(Fabrics!$A$1:E14),FALSE),\"\")","v":""},{"$f":"IFERROR(INDEX(Fabrics!$C$2:$C$5001,SMALL(IF(L$19=Fabrics!$B$2:$B$5001,MATCH(ROW(Fabrics!$B$2:$B$5001),ROW(Fabrics!$B$2:$B5012)),\"\"),ROWS(Fabrics!$A$1:G12))),\"\")","v":"Signum Screen"},{"$f":"IFERROR(VLOOKUP(M$19,Fabrics!$C$2:$AR$5001,ROWS(Fabrics!$A$1:G14),FALSE),\"\")","v":""}]
[null,null,null,null,null,{"$f":"IFERROR(INDEX(Fabrics!$C$2:$C$5001,SMALL(IF(F$19=Fabrics!$B$2:$B$5001,MATCH(ROW(Fabrics!$B$2:$B$5001),ROW(Fabrics!$B$2:$B5013)),\"\"),ROWS(Fabrics!$A$1:A13))),\"\")","v":"Mantra Blockout"},{"$f":"IFERROR(VLOOKUP(G$19,Fabrics!$C$2:$AR$5001,ROWS(Fabrics!$A$1:A15),FALSE),\"\")","v":""},{"$f":"IFERROR(INDEX(Fabrics!$C$2:$C$5001,SMALL(IF(H$19=Fabrics!$B$2:$B$5001,MATCH(ROW(Fabrics!$B$2:$B$5001),ROW(Fabrics!$B$2:$B5013)),\"\"),ROWS(Fabrics!$A$1:D13))),\"\")","v":"Skye Light Filter"},{"$f":"IFERROR(VLOOKUP(I$19,Fabrics!$C$2:$AR$5001,ROWS(Fabrics!$A$1:C15),FALSE),\"\")","v":""},{"$f":"IFERROR(INDEX(Fabrics!$C$2:$C$5001,SMALL(IF(J$19=Fabrics!$B$2:$B$5001,MATCH(ROW(Fabrics!$B$2:$B$5001),ROW(Fabrics!$B$2:$B5013)),\"\"),ROWS(Fabrics!$A$1:E13))),\"\")","v":"Mantra Blockout"},{"$f":"IFERROR(VLOOKUP(K$19,Fabrics!$C$2:$AR$5001,ROWS(Fabrics!$A$1:E15),FALSE),\"\")","v":""},{"$f":"IFERROR(INDEX(Fabrics!$C$2:$C$5001,SMALL(IF(L$19=Fabrics!$B$2:$B$5001,MATCH(ROW(Fabrics!$B$2:$B$5001),ROW(Fabrics!$B$2:$B5013)),\"\"),ROWS(Fabrics!$A$1:G13))),\"\")","v":"Skye Light Filter"},{"$f":"IFERROR(VLOOKUP(M$19,Fabrics!$C$2:$AR$5001,ROWS(Fabrics!$A$1:G15),FALSE),\"\")","v":""}]
[null,null,null,null,null,{"$f":"IFERROR(INDEX(Fabrics!$C$2:$C$5001,SMALL(IF(F$19=Fabrics!$B$2:$B$5001,MATCH(ROW(Fabrics!$B$2:$B$5001),ROW(Fabrics!$B$2:$B5014)),\"\"),ROWS(Fabrics!$A$1:A14))),\"\")","v":"Matka"},{"$f":"IFERROR(VLOOKUP(G$19,Fabrics!$C$2:$AR$5001,ROWS(Fabrics!$A$1:A16),FALSE),\"\")","v":""},{"$f":"IFERROR(INDEX(Fabrics!$C$2:$C$5001,SMALL(IF(H$19=Fabrics!$B$2:$B$5001,MATCH(ROW(Fabrics!$B$2:$B$5001),ROW(Fabrics!$B$2:$B5014)),\"\"),ROWS(Fabrics!$A$1:D14))),\"\")","v":"Vistaweave Plus"},{"$f":"IFERROR(VLOOKUP(I$19,Fabrics!$C$2:$AR$5001,ROWS(Fabrics!$A$1:C16),FALSE),\"\")","v":""},{"$f":"IFERROR(INDEX(Fabrics!$C$2:$C$5001,SMALL(IF(J$19=Fabrics!$B$2:$B$5001,MATCH(ROW(Fabrics!$B$2:$B$5001),ROW(Fabrics!$B$2:$B5014)),\"\"),ROWS(Fabrics!$A$1:E14))),\"\")","v":"Matka"},{"$f":"IFERROR(VLOOKUP(K$19,Fabrics!$C$2:$AR$5001,ROWS(Fabrics!$A$1:E16),FALSE),\"\")","v":""},{"$f":"IFERROR(INDEX(Fabrics!$C$2:$C$5001,SMALL(IF(L$19=Fabrics!$B$2:$B$5001,MATCH(ROW(Fabrics!$B$2:$B$5001),ROW(Fabrics!$B$2:$B5014)),\"\"),ROWS(Fabrics!$A$1:G14))),\"\")","v":"Vistaweave Plus"},{"$f":"IFERROR(VLOOKUP(M$19,Fabrics!$C$2:$AR$5001,ROWS(Fabrics!$A$1:G16),FALSE),\"\")","v":""}]
[null,null,null,null,null,{"$f":"IFERROR(INDEX(Fabrics!$C$2:$C$5001,SMALL(IF(F$19=Fabrics!$B$2:$B$5001,MATCH(ROW(Fabrics!$B$2:$B$5001),ROW(Fabrics!$B$2:$B5015)),\"\"),ROWS(Fabrics!$A$1:A15))),\"\")","v":"Palau Blockout"},{"$f":"IFERROR(VLOOKUP(G$19,Fabrics!$C$2:$AR$5001,ROWS(Fabrics!$A$1:A17),FALSE),\"\")","v":""},{"$f":"IFERROR(INDEX(Fabrics!$C$2:$C$5001,SMALL(IF(H$19=Fabrics!$B$2:$B$5001,MATCH(ROW(Fabrics!$B$2:$B$5001),ROW(Fabrics!$B$2:$B5015)),\"\"),ROWS(Fabrics!$A$1:D15))),\"\")","v":""},{"$f":"IFERROR(VLOOKUP(I$19,Fabrics!$C$2:$AR$5001,ROWS(Fabrics!$A$1:C17),FALSE),\"\")","v":""},{"$f":"IFERROR(INDEX(Fabrics!$C$2:$C$5001,SMALL(IF(J$19=Fabrics!$B$2:$B$5001,MATCH(ROW(Fabrics!$B$2:$B$5001),ROW(Fabrics!$B$2:$B5015)),\"\"),ROWS(Fabrics!$A$1:E15))),\"\")","v":"Palau Blockout"},{"$f":"IFERROR(VLOOKUP(K$19,Fabrics!$C$2:$AR$5001,ROWS(Fabrics!$A$1:E17),FALSE),\"\")","v":""},{"$f":"IFERROR(INDEX(Fabrics!$C$2:$C$5001,SMALL(IF(L$19=Fabrics!$B$2:$B$5001,MATCH(ROW(Fabrics!$B$2:$B$5001),ROW(Fabrics!$B$2:$B5015)),\"\"),ROWS(Fabrics!$A$1:G15))),\"\")","v":""},{"$f":"IFERROR(VLOOKUP(M$19,Fabrics!$C$2:$AR$5001,ROWS(Fabrics!$A$1:G17),FALSE),\"\")","v":""}]
[null,null,null,null,null,{"$f":"IFERROR(INDEX(Fabrics!$C$2:$C$5001,SMALL(IF(F$19=Fabrics!$B$2:$B$5001,MATCH(ROW(Fabrics!$B$2:$B$5001),ROW(Fabrics!$B$2:$B5016)),\"\"),ROWS(Fabrics!$A$1:A16))),\"\")","v":"PalmBeach"},{"$f":"IFERROR(VLOOKUP(G$19,Fabrics!$C$2:$AR$5001,ROWS(Fabrics!$A$1:A18),FALSE),\"\")","v":""},{"$f":"IFERROR(INDEX(Fabrics!$C$2:$C$5001,SMALL(IF(H$19=Fabrics!$B$2:$B$5001,MATCH(ROW(Fabrics!$B$2:$B$5001),ROW(Fabrics!$B$2:$B5016)),\"\"),ROWS(Fabrics!$A$1:D16))),\"\")","v":""},{"$f":"IFERROR(VLOOKUP(I$19,Fabrics!$C$2:$AR$5001,ROWS(Fabrics!$A$1:C18),FALSE),\"\")","v":""},{"$f":"IFERROR(INDEX(Fabrics!$C$2:$C$5001,SMALL(IF(J$19=Fabrics!$B$2:$B$5001,MATCH(ROW(Fabrics!$B$2:$B$5001),ROW(Fabrics!$B$2:$B5016)),\"\"),ROWS(Fabrics!$A$1:E16))),\"\")","v":"PalmBeach"},{"$f":"IFERROR(VLOOKUP(K$19,Fabrics!$C$2:$AR$5001,ROWS(Fabrics!$A$1:E18),FALSE),\"\")","v":""},{"$f":"IFERROR(INDEX(Fabrics!$C$2:$C$5001,SMALL(IF(L$19=Fabrics!$B$2:$B$5001,MATCH(ROW(Fabrics!$B$2:$B$5001),ROW(Fabrics!$B$2:$B5016)),\"\"),ROWS(Fabrics!$A$1:G16))),\"\")","v":""},{"$f":"IFERROR(VLOOKUP(M$19,Fabrics!$C$2:$AR$5001,ROWS(Fabrics!$A$1:G18),FALSE),\"\")","v":""}]
[null,null,null,null,null,{"$f":"IFERROR(INDEX(Fabrics!$C$2:$C$5001,SMALL(IF(F$19=Fabrics!$B$2:$B$5001,MATCH(ROW(Fabrics!$B$2:$B$5001),ROW(Fabrics!$B$2:$B5017)),\"\"),ROWS(Fabrics!$A$1:A17))),\"\")","v":"Quebec"},{"$f":"IFERROR(VLOOKUP(G$19,Fabrics!$C$2:$AR$5001,ROWS(Fabrics!$A$1:A19),FALSE),\"\")","v":""},{"$f":"IFERROR(INDEX(Fabrics!$C$2:$C$5001,SMALL(IF(H$19=Fabrics!$B$2:$B$5001,MATCH(ROW(Fabrics!$B$2:$B$5001),ROW(Fabrics!$B$2:$B5017)),\"\"),ROWS(Fabrics!$A$1:D17))),\"\")","v":""},{"$f":"IFERROR(VLOOKUP(I$19,Fabrics!$C$2:$AR$5001,ROWS(Fabrics!$A$1:C19),FALSE),\"\")","v":""},{"$f":"IFERROR(INDEX(Fabrics!$C$2:$C$5001,SMALL(IF(J$19=Fabrics!$B$2:$B$5001,MATCH(ROW(Fabrics!$B$2:$B$5001),ROW(Fabrics!$B$2:$B5017)),\"\"),ROWS(Fabrics!$A$1:E17))),\"\")","v":"Quebec"},{"$f":"IFERROR(VLOOKUP(K$19,Fabrics!$C$2:$AR$5001,ROWS(Fabrics!$A$1:E19),FALSE),\"\")","v":""},{"$f":"IFERROR(INDEX(Fabrics!$C$2:$C$5001,SMALL(IF(L$19=Fabrics!$B$2:$B$5001,MATCH(ROW(Fabrics!$B$2:$B$5001),ROW(Fabrics!$B$2:$B5017)),\"\"),ROWS(Fabrics!$A$1:G17))),\"\")","v":""},{"$f":"IFERROR(VLOOKUP(M$19,Fabrics!$C$2:$AR$5001,ROWS(Fabrics!$A$1:G19),FALSE),\"\")","v":""}]
[null,null,null,null,null,{"$f":"IFERROR(INDEX(Fabrics!$C$2:$C$5001,SMALL(IF(F$19=Fabrics!$B$2:$B$5001,MATCH(ROW(Fabrics!$B$2:$B$5001),ROW(Fabrics!$B$2:$B5018)),\"\"),ROWS(Fabrics!$A$1:A18))),\"\")","v":"Resene Origin"},{"$f":"IFERROR(VLOOKUP(G$19,Fabrics!$C$2:$AR$5001,ROWS(Fabrics!$A$1:A20),FALSE),\"\")","v":""},{"$f":"IFERROR(INDEX(Fabrics!$C$2:$C$5001,SMALL(IF(H$19=Fabrics!$B$2:$B$5001,MATCH(ROW(Fabrics!$B$2:$B$5001),ROW(Fabrics!$B$2:$B5018)),\"\"),ROWS(Fabrics!$A$1:D18))),\"\")","v":""},{"$f":"IFERROR(VLOOKUP(I$19,Fabrics!$C$2:$AR$5001,ROWS(Fabrics!$A$1:C20),FALSE),\"\")","v":""},{"$f":"IFERROR(INDEX(Fabrics!$C$2:$C$5001,SMALL(IF(J$19=Fabrics!$B$2:$B$5001,MATCH(ROW(Fabrics!$B$2:$B$5001),ROW(Fabrics!$B$2:$B5018)),\"\"),ROWS(Fabrics!$A$1:E18))),\"\")","v":"Resene Origin"},{"$f":"IFERROR(VLOOKUP(K$19,Fabrics!$C$2:$AR$5001,ROWS(Fabrics!$A$1:E20),FALSE),\"\")","v":""},{"$f":"IFERROR(INDEX(Fabrics!$C$2:$C$5001,SMALL(IF(L$19=Fabrics!$B$2:$B$5001,MATCH(ROW(Fabrics!$B$2:$B$5001),ROW(Fabrics!$B$2:$B5018)),\"\"),ROWS(Fabrics!$A$1:G18))),\"\")","v":""},{"$f":"IFERROR(VLOOKUP(M$19,Fabrics!$C$2:$AR$5001,ROWS(Fabrics!$A$1:G20),FALSE),\"\")","v":""}]
[null,null,null,null,null,{"$f":"IFERROR(INDEX(Fabrics!$C$2:$C$5001,SMALL(IF(F$19=Fabrics!$B$2:$B$5001,MATCH(ROW(Fabrics!$B$2:$B$5001),ROW(Fabrics!$B$2:$B5019)),\"\"),ROWS(Fabrics!$A$1:A19))),\"\")","v":"Sassari"},{"$f":"IFERROR(VLOOKUP(G$19,Fabrics!$C$2:$AR$5001,ROWS(Fabrics!$A$1:A21),FALSE),\"\")","v":""},{"$f":"IFERROR(INDEX(Fabrics!$C$2:$C$5001,SMALL(IF(H$19=Fabrics!$B$2:$B$5001,MATCH(ROW(Fabrics!$B$2:$B$5001),ROW(Fabrics!$B$2:$B5019)),\"\"),ROWS(Fabrics!$A$1:D19))),\"\")","v":""},{"$f":"IFERROR(VLOOKUP(I$19,Fabrics!$C$2:$AR$5001,ROWS(Fabrics!$A$1:C21),FALSE),\"\")","v":""},{"$f":"IFERROR(INDEX(Fabrics!$C$2:$C$5001,SMALL(IF(J$19=Fabrics!$B$2:$B$5001,MATCH(ROW(Fabrics!$B$2:$B$5001),ROW(Fabrics!$B$2:$B5019)),\"\"),ROWS(Fabrics!$A$1:E19))),\"\")","v":"Sassari"},{"$f":"IFERROR(VLOOKUP(K$19,Fabrics!$C$2:$AR$5001,ROWS(Fabrics!$A$1:E21),FALSE),\"\")","v":""},{"$f":"IFERROR(INDEX(Fabrics!$C$2:$C$5001,SMALL(IF(L$19=Fabrics!$B$2:$B$5001,MATCH(ROW(Fabrics!$B$2:$B$5001),ROW(Fabrics!$B$2:$B5019)),\"\"),ROWS(Fabrics!$A$1:G19))),\"\")","v":""},{"$f":"IFERROR(VLOOKUP(M$19,Fabrics!$C$2:$AR$5001,ROWS(Fabrics!$A$1:G21),FALSE),\"\")","v":""}]
[null,null,null,null,null,{"$f":"IFERROR(INDEX(Fabrics!$C$2:$C$5001,SMALL(IF(F$19=Fabrics!$B$2:$B$5001,MATCH(ROW(Fabrics!$B$2:$B$5001),ROW(Fabrics!$B$2:$B5020)),\"\"),ROWS(Fabrics!$A$1:A20))),\"\")","v":"Signum BO"},{"$f":"IFERROR(VLOOKUP(G$19,Fabrics!$C$2:$AR$5001,ROWS(Fabrics!$A$1:A22),FALSE),\"\")","v":""},{"$f":"IFERROR(INDEX(Fabrics!$C$2:$C$5001,SMALL(IF(H$19=Fabrics!$B$2:$B$5001,MATCH(ROW(Fabrics!$B$2:$B$5001),ROW(Fabrics!$B$2:$B5020)),\"\"),ROWS(Fabrics!$A$1:D20))),\"\")","v":""},{"$f":"IFERROR(VLOOKUP(I$19,Fabrics!$C$2:$AR$5001,ROWS(Fabrics!$A$1:C22),FALSE),\"\")","v":""},{"$f":"IFERROR(INDEX(Fabrics!$C$2:$C$5001,SMALL(IF(J$19=Fabrics!$B$2:$B$5001,MATCH(ROW(Fabrics!$B$2:$B$5001),ROW(Fabrics!$B$2:$B5020)),\"\"),ROWS(Fabrics!$A$1:E20))),\"\")","v":"Signum BO"},{"$f":"IFERROR(VLOOKUP(K$19,Fabrics!$C$2:$AR$5001,ROWS(Fabrics!$A$1:E22),FALSE),\"\")","v":""},{"$f":"IFERROR(INDEX(Fabrics!$C$2:$C$5001,SMALL(IF(L$19=Fabrics!$B$2:$B$5001,MATCH(ROW(Fabrics!$B$2:$B$5001),ROW(Fabrics!$B$2:$B5020)),\"\"),ROWS(Fabrics!$A$1:G20))),\"\")","v":""},{"$f":"IFERROR(VLOOKUP(M$19,Fabrics!$C$2:$AR$5001,ROWS(Fabrics!$A$1:G22),FALSE),\"\")","v":""}]
[null,null,null,null,null,{"$f":"IFERROR(INDEX(Fabrics!$C$2:$C$5001,SMALL(IF(F$19=Fabrics!$B$2:$B$5001,MATCH(ROW(Fabrics!$B$2:$B$5001),ROW(Fabrics!$B$2:$B5021)),\"\"),ROWS(Fabrics!$A$1:A21))),\"\")","v":"Skye"},{"$f":"IFERROR(VLOOKUP(G$19,Fabrics!$C$2:$AR$5001,ROWS(Fabrics!$A$1:A23),FALSE),\"\")","v":""},{"$f":"IFERROR(INDEX(Fabrics!$C$2:$C$5001,SMALL(IF(H$19=Fabrics!$B$2:$B$5001,MATCH(ROW(Fabrics!$B$2:$B$5001),ROW(Fabrics!$B$2:$B5021)),\"\"),ROWS(Fabrics!$A$1:D21))),\"\")","v":""},{"$f":"IFERROR(VLOOKUP(I$19,Fabrics!$C$2:$AR$5001,ROWS(Fabrics!$A$1:C23),FALSE),\"\")","v":""},{"$f":"IFERROR(INDEX(Fabrics!$C$2:$C$5001,SMALL(IF(J$19=Fabrics!$B$2:$B$5001,MATCH(ROW(Fabrics!$B$2:$B$5001),ROW(Fabrics!$B$2:$B5021)),\"\"),ROWS(Fabrics!$A$1:E21))),\"\")","v":"Skye"},{"$f":"IFERROR(VLOOKUP(K$19,Fabrics!$C$2:$AR$5001,ROWS(Fabrics!$A$1:E23),FALSE),\"\")","v":""},{"$f":"IFERROR(INDEX(Fabrics!$C$2:$C$5001,SMALL(IF(L$19=Fabrics!$B$2:$B$5001,MATCH(ROW(Fabrics!$B$2:$B$5001),ROW(Fabrics!$B$2:$B5021)),\"\"),ROWS(Fabrics!$A$1:G21))),\"\")","v":""},{"$f":"IFERROR(VLOOKUP(M$19,Fabrics!$C$2:$AR$5001,ROWS(Fabrics!$A$1:G23),FALSE),\"\")","v":""}]
[null,null,null,null,null,{"$f":"IFERROR(INDEX(Fabrics!$C$2:$C$5001,SMALL(IF(F$19=Fabrics!$B$2:$B$5001,MATCH(ROW(Fabrics!$B$2:$B$5001),ROW(Fabrics!$B$2:$B5022)),\"\"),ROWS(Fabrics!$A$1:A22))),\"\")","v":"Sunbloc"},{"$f":"IFERROR(VLOOKUP(G$19,Fabrics!$C$2:$AR$5001,ROWS(Fabrics!$A$1:A24),FALSE),\"\")","v":""},{"$f":"IFERROR(INDEX(Fabrics!$C$2:$C$5001,SMALL(IF(H$19=Fabrics!$B$2:$B$5001,MATCH(ROW(Fabrics!$B$2:$B$5001),ROW(Fabrics!$B$2:$B5022)),\"\"),ROWS(Fabrics!$A$1:D22))),\"\")","v":""},{"$f":"IFERROR(VLOOKUP(I$19,Fabrics!$C$2:$AR$5001,ROWS(Fabrics!$A$1:C24),FALSE),\"\")","v":""},{"$f":"IFERROR(INDEX(Fabrics!$C$2:$C$5001,SMALL(IF(J$19=Fabrics!$B$2:$B$5001,MATCH(ROW(Fabrics!$B$2:$B$5001),ROW(Fabrics!$B$2:$B5022)),\"\"),ROWS(Fabrics!$A$1:E22))),\"\")","v":"Sunbloc"},{"$f":"IFERROR(VLOOKUP(K$19,Fabrics!$C$2:$AR$5001,ROWS(Fabrics!$A$1:E24),FALSE),\"\")","v":""},{"$f":"IFERROR(INDEX(Fabrics!$C$2:$C$5001,SMALL(IF(L$19=Fabrics!$B$2:$B$5001,MATCH(ROW(Fabrics!$B$2:$B$5001),ROW(Fabrics!$B$2:$B5022)),\"\"),ROWS(Fabrics!$A$1:G22))),\"\")","v":""},{"$f":"IFERROR(VLOOKUP(M$19,Fabrics!$C$2:$AR$5001,ROWS(Fabrics!$A$1:G24),FALSE),\"\")","v":""}]
[null,null,null,null,null,{"$f":"IFERROR(INDEX(Fabrics!$C$2:$C$5001,SMALL(IF(F$19=Fabrics!$B$2:$B$5001,MATCH(ROW(Fabrics!$B$2:$B$5001),ROW(Fabrics!$B$2:$B5023)),\"\"),ROWS(Fabrics!$A$1:A23))),\"\")","v":"Tasman"},{"$f":"IFERROR(VLOOKUP(G$19,Fabrics!$C$2:$AR$5001,ROWS(Fabrics!$A$1:A25),FALSE),\"\")","v":""},{"$f":"IFERROR(INDEX(Fabrics!$C$2:$C$5001,SMALL(IF(H$19=Fabrics!$B$2:$B$5001,MATCH(ROW(Fabrics!$B$2:$B$5001),ROW(Fabrics!$B$2:$B5023)),\"\"),ROWS(Fabrics!$A$1:D23))),\"\")","v":""},{"$f":"IFERROR(VLOOKUP(I$19,Fabrics!$C$2:$AR$5001,ROWS(Fabrics!$A$1:C25),FALSE),\"\")","v":""},{"$f":"IFERROR(INDEX(Fabrics!$C$2:$C$5001,SMALL(IF(J$19=Fabrics!$B$2:$B$5001,MATCH(ROW(Fabrics!$B$2:$B$5001),ROW(Fabrics!$B$2:$B5023)),\"\"),ROWS(Fabrics!$A$1:E23))),\"\")","v":"Tasman"},{"$f":"IFERROR(VLOOKUP(K$19,Fabrics!$C$2:$AR$5001,ROWS(Fabrics!$A$1:E25),FALSE),\"\")","v":""},{"$f":"IFERROR(INDEX(Fabrics!$C$2:$C$5001,SMALL(IF(L$19=Fabrics!$B$2:$B$5001,MATCH(ROW(Fabrics!$B$2:$B$5001),ROW(Fabrics!$B$2:$B5023)),\"\"),ROWS(Fabrics!$A$1:G23))),\"\")","v":""},{"$f":"IFERROR(VLOOKUP(M$19,Fabrics!$C$2:$AR$5001,ROWS(Fabrics!$A$1:G25),FALSE),\"\")","v":""}]
[null,null,null,null,null,{"$f":"IFERROR(INDEX(Fabrics!$C$2:$C$5001,SMALL(IF(F$19=Fabrics!$B$2:$B$5001,MATCH(ROW(Fabrics!$B$2:$B$5001),ROW(Fabrics!$B$2:$B5024)),\"\"),ROWS(Fabrics!$A$1:A24))),\"\")","v":"Vibe Xtra"},{"$f":"IFERROR(VLOOKUP(G$19,Fabrics!$C$2:$AR$5001,ROWS(Fabrics!$A$1:A26),FALSE),\"\")","v":""},{"$f":"IFERROR(INDEX(Fabrics!$C$2:$C$5001,SMALL(IF(H$19=Fabrics!$B$2:$B$5001,MATCH(ROW(Fabrics!$B$2:$B$5001),ROW(Fabrics!$B$2:$B5024)),\"\"),ROWS(Fabrics!$A$1:D24))),\"\")","v":""},{"$f":"IFERROR(VLOOKUP(I$19,Fabrics!$C$2:$AR$5001,ROWS(Fabrics!$A$1:C26),FALSE),\"\")","v":""},{"$f":"IFERROR(INDEX(Fabrics!$C$2:$C$5001,SMALL(IF(J$19=Fabrics!$B$2:$B$5001,MATCH(ROW(Fabrics!$B$2:$B$5001),ROW(Fabrics!$B$2:$B5024)),\"\"),ROWS(Fabrics!$A$1:E24))),\"\")","v":"Vibe Xtra"},{"$f":"IFERROR(VLOOKUP(K$19,Fabrics!$C$2:$AR$5001,ROWS(Fabrics!$A$1:E26),FALSE),\"\")","v":""},{"$f":"IFERROR(INDEX(Fabrics!$C$2:$C$5001,SMALL(IF(L$19=Fabrics!$B$2:$B$5001,MATCH(ROW(Fabrics!$B$2:$B$5001),ROW(Fabrics!$B$2:$B5024)),\"\"),ROWS(Fabrics!$A$1:G24))),\"\")","v":""},{"$f":"IFERROR(VLOOKUP(M$19,Fabrics!$C$2:$AR$5001,ROWS(Fabrics!$A$1:G26),FALSE),\"\")","v":""}]
[null,null,null,null,null,{"$f":"IFERROR(INDEX(Fabrics!$C$2:$C$5001,SMALL(IF(F$19=Fabrics!$B$2:$B$5001,MATCH(ROW(Fabrics!$B$2:$B$5001),ROW(Fabrics!$B$2:$B5025)),\"\"),ROWS(Fabrics!$A$1:A25))),\"\")","v":"Vibe Xtra Metallic"},{"$f":"IFERROR(VLOOKUP(G$19,Fabrics!$C$2:$AR$5001,ROWS(Fabrics!$A$1:A27),FALSE),\"\")","v":""},{"$f":"IFERROR(INDEX(Fabrics!$C$2:$C$5001,SMALL(IF(H$19=Fabrics!$B$2:$B$5001,MATCH(ROW(Fabrics!$B$2:$B$5001),ROW(Fabrics!$B$2:$B5025)),\"\"),ROWS(Fabrics!$A$1:D25))),\"\")","v":""},{"$f":"IFERROR(VLOOKUP(I$19,Fabrics!$C$2:$AR$5001,ROWS(Fabrics!$A$1:C27),FALSE),\"\")","v":""},{"$f":"IFERROR(INDEX(Fabrics!$C$2:$C$5001,SMALL(IF(J$19=Fabrics!$B$2:$B$5001,MATCH(ROW(Fabrics!$B$2:$B$5001),ROW(Fabrics!$B$2:$B5025)),\"\"),ROWS(Fabrics!$A$1:E25))),\"\")","v":"Vibe Xtra Metallic"},{"$f":"IFERROR(VLOOKUP(K$19,Fabrics!$C$2:$AR$5001,ROWS(Fabrics!$A$1:E27),FALSE),\"\")","v":""},{"$f":"IFERROR(INDEX(Fabrics!$C$2:$C$5001,SMALL(IF(L$19=Fabrics!$B$2:$B$5001,MATCH(ROW(Fabrics!$B$2:$B$5001),ROW(Fabrics!$B$2:$B5025)),\"\"),ROWS(Fabrics!$A$1:G25))),\"\")","v":""},{"$f":"IFERROR(VLOOKUP(M$19,Fabrics!$C$2:$AR$5001,ROWS(Fabrics!$A$1:G27),FALSE),\"\")","v":""}]
[null,null,null,null,null,{"$f":"IFERROR(INDEX(Fabrics!$C$2:$C$5001,SMALL(IF(F$19=Fabrics!$B$2:$B$5001,MATCH(ROW(Fabrics!$B$2:$B$5001),ROW(Fabrics!$B$2:$B5026)),\"\"),ROWS(Fabrics!$A$1:A26))),\"\")","v":"Willandra Blockout"},{"$f":"IFERROR(VLOOKUP(G$19,Fabrics!$C$2:$AR$5001,ROWS(Fabrics!$A$1:A28),FALSE),\"\")","v":""},{"$f":"IFERROR(INDEX(Fabrics!$C$2:$C$5001,SMALL(IF(H$19=Fabrics!$B$2:$B$5001,MATCH(ROW(Fabrics!$B$2:$B$5001),ROW(Fabrics!$B$2:$B5026)),\"\"),ROWS(Fabrics!$A$1:D26))),\"\")","v":""},{"$f":"IFERROR(VLOOKUP(I$19,Fabrics!$C$2:$AR$5001,ROWS(Fabrics!$A$1:C28),FALSE),\"\")","v":""},{"$f":"IFERROR(INDEX(Fabrics!$C$2:$C$5001,SMALL(IF(J$19=Fabrics!$B$2:$B$5001,MATCH(ROW(Fabrics!$B$2:$B$5001),ROW(Fabrics!$B$2:$B5026)),\"\"),ROWS(Fabrics!$A$1:E26))),\"\")","v":"Willandra Blockout"},{"$f":"IFERROR(VLOOKUP(K$19,Fabrics!$C$2:$AR$5001,ROWS(Fabrics!$A$1:E28),FALSE),\"\")","v":""},{"$f":"IFERROR(INDEX(Fabrics!$C$2:$C$5001,SMALL(IF(L$19=Fabrics!$B$2:$B$5001,MATCH(ROW(Fabrics!$B$2:$B$5001),ROW(Fabrics!$B$2:$B5026)),\"\"),ROWS(Fabrics!$A$1:G26))),\"\")","v":""},{"$f":"IFERROR(VLOOKUP(M$19,Fabrics!$C$2:$AR$5001,ROWS(Fabrics!$A$1:G28),FALSE),\"\")","v":""}]
[null,null,null,null,null,{"$f":"IFERROR(INDEX(Fabrics!$C$2:$C$5001,SMALL(IF(F$19=Fabrics!$B$2:$B$5001,MATCH(ROW(Fabrics!$B$2:$B$5001),ROW(Fabrics!$B$2:$B5027)),\"\"),ROWS(Fabrics!$A$1:A27))),\"\")","v":"Zen BO"},{"$f":"IFERROR(VLOOKUP(G$19,Fabrics!$C$2:$AR$5001,ROWS(Fabrics!$A$1:A29),FALSE),\"\")","v":""},{"$f":"IFERROR(INDEX(Fabrics!$C$2:$C$5001,SMALL(IF(H$19=Fabrics!$B$2:$B$5001,MATCH(ROW(Fabrics!$B$2:$B$5001),ROW(Fabrics!$B$2:$B5027)),\"\"),ROWS(Fabrics!$A$1:C27))),\"\")","v":""},{"$f":"IFERROR(VLOOKUP(I$19,Fabrics!$C$2:$AR$5001,ROWS(Fabrics!$A$1:C29),FALSE),\"\")","v":""},{"$f":"IFERROR(INDEX(Fabrics!$C$2:$C$5001,SMALL(IF(J$19=Fabrics!$B$2:$B$5001,MATCH(ROW(Fabrics!$B$2:$B$5001),ROW(Fabrics!$B$2:$B5027)),\"\"),ROWS(Fabrics!$A$1:E27))),\"\")","v":"Zen BO"},{"$f":"IFERROR(VLOOKUP(K$19,Fabrics!$C$2:$AR$5001,ROWS(Fabrics!$A$1:E29),FALSE),\"\")","v":""},{"$f":"IFERROR(INDEX(Fabrics!$C$2:$C$5001,SMALL(IF(L$19=Fabrics!$B$2:$B$5001,MATCH(ROW(Fabrics!$B$2:$B$5001),ROW(Fabrics!$B$2:$B5027)),\"\"),ROWS(Fabrics!$A$1:G27))),\"\")","v":""},{"$f":"IFERROR(VLOOKUP(M$19,Fabrics!$C$2:$AR$5001,ROWS(Fabrics!$A$1:G29),FALSE),\"\")","v":""}]
[null,null,null,null,null,{"$f":"IFERROR(INDEX(Fabrics!$C$2:$C$5001,SMALL(IF(F$19=Fabrics!$B$2:$B$5001,MATCH(ROW(Fabrics!$B$2:$B$5001),ROW(Fabrics!$B$2:$B5028)),\"\"),ROWS(Fabrics!$A$1:A28))),\"\")","v":""},{"$f":"IFERROR(VLOOKUP(G$19,Fabrics!$C$2:$AR$5001,ROWS(Fabrics!$A$1:A30),FALSE),\"\")","v":""},{"$f":"IFERROR(INDEX(Fabrics!$C$2:$C$5001,SMALL(IF(H$19=Fabrics!$B$2:$B$5001,MATCH(ROW(Fabrics!$B$2:$B$5001),ROW(Fabrics!$B$2:$B5028)),\"\"),ROWS(Fabrics!$A$1:C28))),\"\")","v":""},{"$f":"IFERROR(VLOOKUP(I$19,Fabrics!$C$2:$AR$5001,ROWS(Fabrics!$A$1:C30),FALSE),\"\")","v":""},{"$f":"IFERROR(INDEX(Fabrics!$C$2:$C$5001,SMALL(IF(J$19=Fabrics!$B$2:$B$5001,MATCH(ROW(Fabrics!$B$2:$B$5001),ROW(Fabrics!$B$2:$B5028)),\"\"),ROWS(Fabrics!$A$1:E28))),\"\")","v":""},{"$f":"IFERROR(VLOOKUP(K$19,Fabrics!$C$2:$AR$5001,ROWS(Fabrics!$A$1:E30),FALSE),\"\")","v":""},{"$f":"IFERROR(INDEX(Fabrics!$C$2:$C$5001,SMALL(IF(L$19=Fabrics!$B$2:$B$5001,MATCH(ROW(Fabrics!$B$2:$B$5001),ROW(Fabrics!$B$2:$B5028)),\"\"),ROWS(Fabrics!$A$1:G28))),\"\")","v":""},{"$f":"IFERROR(VLOOKUP(M$19,Fabrics!$C$2:$AR$5001,ROWS(Fabrics!$A$1:G30),FALSE),\"\")","v":""}]
[null,null,null,null,null,{"$f":"IFERROR(INDEX(Fabrics!$C$2:$C$5001,SMALL(IF(F$19=Fabrics!$B$2:$B$5001,MATCH(ROW(Fabrics!$B$2:$B$5001),ROW(Fabrics!$B$2:$B5029)),\"\"),ROWS(Fabrics!$A$1:A29))),\"\")","v":""},{"$f":"IFERROR(VLOOKUP(G$19,Fabrics!$C$2:$AR$5001,ROWS(Fabrics!$A$1:A31),FALSE),\"\")","v":""},{"$f":"IFERROR(INDEX(Fabrics!$C$2:$C$5001,SMALL(IF(H$19=Fabrics!$B$2:$B$5001,MATCH(ROW(Fabrics!$B$2:$B$5001),ROW(Fabrics!$B$2:$B5029)),\"\"),ROWS(Fabrics!$A$1:C29))),\"\")","v":""},{"$f":"IFERROR(VLOOKUP(I$19,Fabrics!$C$2:$AR$5001,ROWS(Fabrics!$A$1:C31),FALSE),\"\")","v":""},{"$f":"IFERROR(INDEX(Fabrics!$C$2:$C$5001,SMALL(IF(J$19=Fabrics!$B$2:$B$5001,MATCH(ROW(Fabrics!$B$2:$B$5001),ROW(Fabrics!$B$2:$B5029)),\"\"),ROWS(Fabrics!$A$1:E29))),\"\")","v":""},{"$f":"IFERROR(VLOOKUP(K$19,Fabrics!$C$2:$AR$5001,ROWS(Fabrics!$A$1:E31),FALSE),\"\")","v":""},{"$f":"IFERROR(INDEX(Fabrics!$C$2:$C$5001,SMALL(IF(L$19=Fabrics!$B$2:$B$5001,MATCH(ROW(Fabrics!$B$2:$B$5001),ROW(Fabrics!$B$2:$B5029)),\"\"),ROWS(Fabrics!$A$1:G29))),\"\")","v":""},{"$f":"IFERROR(VLOOKUP(M$19,Fabrics!$C$2:$AR$5001,ROWS(Fabrics!$A$1:G31),FALSE),\"\")","v":""}]
[null,null,null,null,null,{"$f":"IFERROR(INDEX(Fabrics!$C$2:$C$5001,SMALL(IF(F$19=Fabrics!$B$2:$B$5001,MATCH(ROW(Fabrics!$B$2:$B$5001),ROW(Fabrics!$B$2:$B5030)),\"\"),ROWS(Fabrics!$A$1:A30))),\"\")","v":""},{"$f":"IFERROR(VLOOKUP(G$19,Fabrics!$C$2:$AR$5001,ROWS(Fabrics!$A$1:A32),FALSE),\"\")","v":""},{"$f":"IFERROR(INDEX(Fabrics!$C$2:$C$5001,SMALL(IF(H$19=Fabrics!$B$2:$B$5001,MATCH(ROW(Fabrics!$B$2:$B$5001),ROW(Fabrics!$B$2:$B5030)),\"\"),ROWS(Fabrics!$A$1:C30))),\"\")","v":""},{"$f":"IFERROR(VLOOKUP(I$19,Fabrics!$C$2:$AR$5001,ROWS(Fabrics!$A$1:C32),FALSE),\"\")","v":""},{"$f":"IFERROR(INDEX(Fabrics!$C$2:$C$5001,SMALL(IF(J$19=Fabrics!$B$2:$B$5001,MATCH(ROW(Fabrics!$B$2:$B$5001),ROW(Fabrics!$B$2:$B5030)),\"\"),ROWS(Fabrics!$A$1:E30))),\"\")","v":""},{"$f":"IFERROR(VLOOKUP(K$19,Fabrics!$C$2:$AR$5001,ROWS(Fabrics!$A$1:E32),FALSE),\"\")","v":""},{"$f":"IFERROR(INDEX(Fabrics!$C$2:$C$5001,SMALL(IF(L$19=Fabrics!$B$2:$B$5001,MATCH(ROW(Fabrics!$B$2:$B$5001),ROW(Fabrics!$B$2:$B5030)),\"\"),ROWS(Fabrics!$A$1:G30))),\"\")","v":""},{"$f":"IFERROR(VLOOKUP(M$19,Fabrics!$C$2:$AR$5001,ROWS(Fabrics!$A$1:G32),FALSE),\"\")","v":""}]
[null,null,null,null,null,{"$f":"IFERROR(INDEX(Fabrics!$C$2:$C$5001,SMALL(IF(F$19=Fabrics!$B$2:$B$5001,MATCH(ROW(Fabrics!$B$2:$B$5001),ROW(Fabrics!$B$2:$B5031)),\"\"),ROWS(Fabrics!$A$1:A31))),\"\")","v":""},{"$f":"IFERROR(VLOOKUP(G$19,Fabrics!$C$2:$AR$5001,ROWS(Fabrics!$A$1:A33),FALSE),\"\")","v":""},{"$f":"IFERROR(INDEX(Fabrics!$C$2:$C$5001,SMALL(IF(H$19=Fabrics!$B$2:$B$5001,MATCH(ROW(Fabrics!$B$2:$B$5001),ROW(Fabrics!$B$2:$B5031)),\"\"),ROWS(Fabrics!$A$1:C31))),\"\")","v":""},{"$f":"IFERROR(VLOOKUP(I$19,Fabrics!$C$2:$AR$5001,ROWS(Fabrics!$A$1:C33),FALSE),\"\")","v":""},{"$f":"IFERROR(INDEX(Fabrics!$C$2:$C$5001,SMALL(IF(J$19=Fabrics!$B$2:$B$5001,MATCH(ROW(Fabrics!$B$2:$B$5001),ROW(Fabrics!$B$2:$B5031)),\"\"),ROWS(Fabrics!$A$1:E31))),\"\")","v":""},{"$f":"IFERROR(VLOOKUP(K$19,Fabrics!$C$2:$AR$5001,ROWS(Fabrics!$A$1:E33),FALSE),\"\")","v":""},{"$f":"IFERROR(INDEX(Fabrics!$C$2:$C$5001,SMALL(IF(L$19=Fabrics!$B$2:$B$5001,MATCH(ROW(Fabrics!$B$2:$B$5001),ROW(Fabrics!$B$2:$B5031)),\"\"),ROWS(Fabrics!$A$1:G31))),\"\")","v":""},{"$f":"IFERROR(VLOOKUP(M$19,Fabrics!$C$2:$AR$5001,ROWS(Fabrics!$A$1:G33),FALSE),\"\")","v":""}]
[null,null,null,null,null,{"$f":"IFERROR(INDEX(Fabrics!$C$2:$C$5001,SMALL(IF(F$19=Fabrics!$B$2:$B$5001,MATCH(ROW(Fabrics!$B$2:$B$5001),ROW(Fabrics!$B$2:$B5032)),\"\"),ROWS(Fabrics!$A$1:A32))),\"\")","v":""},{"$f":"IFERROR(VLOOKUP(G$19,Fabrics!$C$2:$AR$5001,ROWS(Fabrics!$A$1:A34),FALSE),\"\")","v":""},{"$f":"IFERROR(INDEX(Fabrics!$C$2:$C$5001,SMALL(IF(H$19=Fabrics!$B$2:$B$5001,MATCH(ROW(Fabrics!$B$2:$B$5001),ROW(Fabrics!$B$2:$B5032)),\"\"),ROWS(Fabrics!$A$1:C32))),\"\")","v":""},{"$f":"IFERROR(VLOOKUP(I$19,Fabrics!$C$2:$AR$5001,ROWS(Fabrics!$A$1:C34),FALSE),\"\")","v":""},{"$f":"IFERROR(INDEX(Fabrics!$C$2:$C$5001,SMALL(IF(J$19=Fabrics!$B$2:$B$5001,MATCH(ROW(Fabrics!$B$2:$B$5001),ROW(Fabrics!$B$2:$B5032)),\"\"),ROWS(Fabrics!$A$1:E32))),\"\")","v":""},{"$f":"IFERROR(VLOOKUP(K$19,Fabrics!$C$2:$AR$5001,ROWS(Fabrics!$A$1:E34),FALSE),\"\")","v":""},{"$f":"IFERROR(INDEX(Fabrics!$C$2:$C$5001,SMALL(IF(L$19=Fabrics!$B$2:$B$5001,MATCH(ROW(Fabrics!$B$2:$B$5001),ROW(Fabrics!$B$2:$B5032)),\"\"),ROWS(Fabrics!$A$1:G32))),\"\")","v":""},{"$f":"IFERROR(VLOOKUP(M$19,Fabrics!$C$2:$AR$5001,ROWS(Fabrics!$A$1:G34),FALSE),\"\")","v":""}]
[null,null,null,null,null,{"$f":"IFERROR(INDEX(Fabrics!$C$2:$C$5001,SMALL(IF(F$19=Fabrics!$B$2:$B$5001,MATCH(ROW(Fabrics!$B$2:$B$5001),ROW(Fabrics!$B$2:$B5033)),\"\"),ROWS(Fabrics!$A$1:A33))),\"\")","v":""},{"$f":"IFERROR(VLOOKUP(G$19,Fabrics!$C$2:$AR$5001,ROWS(Fabrics!$A$1:A35),FALSE),\"\")","v":""},{"$f":"IFERROR(INDEX(Fabrics!$C$2:$C$5001,SMALL(IF(H$19=Fabrics!$B$2:$B$5001,MATCH(ROW(Fabrics!$B$2:$B$5001),ROW(Fabrics!$B$2:$B5033)),\"\"),ROWS(Fabrics!$A$1:C33))),\"\")","v":""},{"$f":"IFERROR(VLOOKUP(I$19,Fabrics!$C$2:$AR$5001,ROWS(Fabrics!$A$1:C35),FALSE),\"\")","v":""},{"$f":"IFERROR(INDEX(Fabrics!$C$2:$C$5001,SMALL(IF(J$19=Fabrics!$B$2:$B$5001,MATCH(ROW(Fabrics!$B$2:$B$5001),ROW(Fabrics!$B$2:$B5033)),\"\"),ROWS(Fabrics!$A$1:E33))),\"\")","v":""},{"$f":"IFERROR(VLOOKUP(K$19,Fabrics!$C$2:$AR$5001,ROWS(Fabrics!$A$1:E35),FALSE),\"\")","v":""},{"$f":"IFERROR(INDEX(Fabrics!$C$2:$C$5001,SMALL(IF(L$19=Fabrics!$B$2:$B$5001,MATCH(ROW(Fabrics!$B$2:$B$5001),ROW(Fabrics!$B$2:$B5033)),\"\"),ROWS(Fabrics!$A$1:G33))),\"\")","v":""},{"$f":"IFERROR(VLOOKUP(M$19,Fabrics!$C$2:$AR$5001,ROWS(Fabrics!$A$1:G35),FALSE),\"\")","v":""}]
[null,null,null,null,null,{"$f":"IFERROR(INDEX(Fabrics!$C$2:$C$5001,SMALL(IF(F$19=Fabrics!$B$2:$B$5001,MATCH(ROW(Fabrics!$B$2:$B$5001),ROW(Fabrics!$B$2:$B5034)),\"\"),ROWS(Fabrics!$A$1:A34))),\"\")","v":""},{"$f":"IFERROR(VLOOKUP(G$19,Fabrics!$C$2:$AR$5001,ROWS(Fabrics!$A$1:A36),FALSE),\"\")","v":""},{"$f":"IFERROR(INDEX(Fabrics!$C$2:$C$5001,SMALL(IF(H$19=Fabrics!$B$2:$B$5001,MATCH(ROW(Fabrics!$B$2:$B$5001),ROW(Fabrics!$B$2:$B5034)),\"\"),ROWS(Fabrics!$A$1:C34))),\"\")","v":""},{"$f":"IFERROR(VLOOKUP(I$19,Fabrics!$C$2:$AR$5001,ROWS(Fabrics!$A$1:C36),FALSE),\"\")","v":""},{"$f":"IFERROR(INDEX(Fabrics!$C$2:$C$5001,SMALL(IF(J$19=Fabrics!$B$2:$B$5001,MATCH(ROW(Fabrics!$B$2:$B$5001),ROW(Fabrics!$B$2:$B5034)),\"\"),ROWS(Fabrics!$A$1:E34))),\"\")","v":""},{"$f":"IFERROR(VLOOKUP(K$19,Fabrics!$C$2:$AR$5001,ROWS(Fabrics!$A$1:E36),FALSE),\"\")","v":""},{"$f":"IFERROR(INDEX(Fabrics!$C$2:$C$5001,SMALL(IF(L$19=Fabrics!$B$2:$B$5001,MATCH(ROW(Fabrics!$B$2:$B$5001),ROW(Fabrics!$B$2:$B5034)),\"\"),ROWS(Fabrics!$A$1:G34))),\"\")","v":""},{"$f":"IFERROR(VLOOKUP(M$19,Fabrics!$C$2:$AR$5001,ROWS(Fabrics!$A$1:G36),FALSE),\"\")","v":""}]
[null,null,null,null,null,{"$f":"IFERROR(INDEX(Fabrics!$C$2:$C$5001,SMALL(IF(F$19=Fabrics!$B$2:$B$5001,MATCH(ROW(Fabrics!$B$2:$B$5001),ROW(Fabrics!$B$2:$B5035)),\"\"),ROWS(Fabrics!$A$1:A35))),\"\")","v":""},{"$f":"IFERROR(VLOOKUP(G$19,Fabrics!$C$2:$AR$5001,ROWS(Fabrics!$A$1:A37),FALSE),\"\")","v":""},{"$f":"IFERROR(INDEX(Fabrics!$C$2:$C$5001,SMALL(IF(H$19=Fabrics!$B$2:$B$5001,MATCH(ROW(Fabrics!$B$2:$B$5001),ROW(Fabrics!$B$2:$B5035)),\"\"),ROWS(Fabrics!$A$1:C35))),\"\")","v":""},{"$f":"IFERROR(VLOOKUP(I$19,Fabrics!$C$2:$AR$5001,ROWS(Fabrics!$A$1:C37),FALSE),\"\")","v":""},{"$f":"IFERROR(INDEX(Fabrics!$C$2:$C$5001,SMALL(IF(J$19=Fabrics!$B$2:$B$5001,MATCH(ROW(Fabrics!$B$2:$B$5001),ROW(Fabrics!$B$2:$B5035)),\"\"),ROWS(Fabrics!$A$1:E35))),\"\")","v":""},{"$f":"IFERROR(VLOOKUP(K$19,Fabrics!$C$2:$AR$5001,ROWS(Fabrics!$A$1:E37),FALSE),\"\")","v":""},{"$f":"IFERROR(INDEX(Fabrics!$C$2:$C$5001,SMALL(IF(L$19=Fabrics!$B$2:$B$5001,MATCH(ROW(Fabrics!$B$2:$B$5001),ROW(Fabrics!$B$2:$B5035)),\"\"),ROWS(Fabrics!$A$1:G35))),\"\")","v":""},{"$f":"IFERROR(VLOOKUP(M$19,Fabrics!$C$2:$AR$5001,ROWS(Fabrics!$A$1:G37),FALSE),\"\")","v":""}]
[null,null,null,null,null,{"$f":"IFERROR(INDEX(Fabrics!$C$2:$C$5001,SMALL(IF(F$19=Fabrics!$B$2:$B$5001,MATCH(ROW(Fabrics!$B$2:$B$5001),ROW(Fabrics!$B$2:$B5036)),\"\"),ROWS(Fabrics!$A$1:A36))),\"\")","v":""},{"$f":"IFERROR(VLOOKUP(G$19,Fabrics!$C$2:$AR$5001,ROWS(Fabrics!$A$1:A38),FALSE),\"\")","v":""},{"$f":"IFERROR(INDEX(Fabrics!$C$2:$C$5001,SMALL(IF(H$19=Fabrics!$B$2:$B$5001,MATCH(ROW(Fabrics!$B$2:$B$5001),ROW(Fabrics!$B$2:$B5036)),\"\"),ROWS(Fabrics!$A$1:C36))),\"\")","v":""},{"$f":"IFERROR(VLOOKUP(I$19,Fabrics!$C$2:$AR$5001,ROWS(Fabrics!$A$1:C38),FALSE),\"\")","v":""},{"$f":"IFERROR(INDEX(Fabrics!$C$2:$C$5001,SMALL(IF(J$19=Fabrics!$B$2:$B$5001,MATCH(ROW(Fabrics!$B$2:$B$5001),ROW(Fabrics!$B$2:$B5036)),\"\"),ROWS(Fabrics!$A$1:E36))),\"\")","v":""},{"$f":"IFERROR(VLOOKUP(K$19,Fabrics!$C$2:$AR$5001,ROWS(Fabrics!$A$1:E38),FALSE),\"\")","v":""},{"$f":"IFERROR(INDEX(Fabrics!$C$2:$C$5001,SMALL(IF(L$19=Fabrics!$B$2:$B$5001,MATCH(ROW(Fabrics!$B$2:$B$5001),ROW(Fabrics!$B$2:$B5036)),\"\"),ROWS(Fabrics!$A$1:G36))),\"\")","v":""},{"$f":"IFERROR(VLOOKUP(M$19,Fabrics!$C$2:$AR$5001,ROWS(Fabrics!$A$1:G38),FALSE),\"\")","v":""}]
[null,null,null,null,null,{"$f":"IFERROR(INDEX(Fabrics!$C$2:$C$5001,SMALL(IF(F$19=Fabrics!$B$2:$B$5001,MATCH(ROW(Fabrics!$B$2:$B$5001),ROW(Fabrics!$B$2:$B5037)),\"\"),ROWS(Fabrics!$A$1:A37))),\"\")","v":""},{"$f":"IFERROR(VLOOKUP(G$19,Fabrics!$C$2:$AR$5001,ROWS(Fabrics!$A$1:A39),FALSE),\"\")","v":""},{"$f":"IFERROR(INDEX(Fabrics!$C$2:$C$5001,SMALL(IF(H$19=Fabrics!$B$2:$B$5001,MATCH(ROW(Fabrics!$B$2:$B$5001),ROW(Fabrics!$B$2:$B5037)),\"\"),ROWS(Fabrics!$A$1:C37))),\"\")","v":""},{"$f":"IFERROR(VLOOKUP(I$19,Fabrics!$C$2:$AR$5001,ROWS(Fabrics!$A$1:C39),FALSE),\"\")","v":""},{"$f":"IFERROR(INDEX(Fabrics!$C$2:$C$5001,SMALL(IF(J$19=Fabrics!$B$2:$B$5001,MATCH(ROW(Fabrics!$B$2:$B$5001),ROW(Fabrics!$B$2:$B5037)),\"\"),ROWS(Fabrics!$A$1:E37))),\"\")","v":""},{"$f":"IFERROR(VLOOKUP(K$19,Fabrics!$C$2:$AR$5001,ROWS(Fabrics!$A$1:E39),FALSE),\"\")","v":""},{"$f":"IFERROR(INDEX(Fabrics!$C$2:$C$5001,SMALL(IF(L$19=Fabrics!$B$2:$B$5001,MATCH(ROW(Fabrics!$B$2:$B$5001),ROW(Fabrics!$B$2:$B5037)),\"\"),ROWS(Fabrics!$A$1:G37))),\"\")","v":""},{"$f":"IFERROR(VLOOKUP(M$19,Fabrics!$C$2:$AR$5001,ROWS(Fabrics!$A$1:G39),FALSE),\"\")","v":""}]
[null,null,null,null,null,{"$f":"IFERROR(INDEX(Fabrics!$C$2:$C$5001,SMALL(IF(F$19=Fabrics!$B$2:$B$5001,MATCH(ROW(Fabrics!$B$2:$B$5001),ROW(Fabrics!$B$2:$B5038)),\"\"),ROWS(Fabrics!$A$1:A38))),\"\")","v":""},{"$f":"IFERROR(VLOOKUP(G$19,Fabrics!$C$2:$AR$5001,ROWS(Fabrics!$A$1:A40),FALSE),\"\")","v":""},{"$f":"IFERROR(INDEX(Fabrics!$C$2:$C$5001,SMALL(IF(H$19=Fabrics!$B$2:$B$5001,MATCH(ROW(Fabrics!$B$2:$B$5001),ROW(Fabrics!$B$2:$B5038)),\"\"),ROWS(Fabrics!$A$1:C38))),\"\")","v":""},{"$f":"IFERROR(VLOOKUP(I$19,Fabrics!$C$2:$AR$5001,ROWS(Fabrics!$A$1:C40),FALSE),\"\")","v":""},{"$f":"IFERROR(INDEX(Fabrics!$C$2:$C$5001,SMALL(IF(J$19=Fabrics!$B$2:$B$5001,MATCH(ROW(Fabrics!$B$2:$B$5001),ROW(Fabrics!$B$2:$B5038)),\"\"),ROWS(Fabrics!$A$1:E38))),\"\")","v":""},{"$f":"IFERROR(VLOOKUP(K$19,Fabrics!$C$2:$AR$5001,ROWS(Fabrics!$A$1:E40),FALSE),\"\")","v":""},{"$f":"IFERROR(INDEX(Fabrics!$C$2:$C$5001,SMALL(IF(L$19=Fabrics!$B$2:$B$5001,MATCH(ROW(Fabrics!$B$2:$B$5001),ROW(Fabrics!$B$2:$B5038)),\"\"),ROWS(Fabrics!$A$1:G38))),\"\")","v":""},{"$f":"IFERROR(VLOOKUP(M$19,Fabrics!$C$2:$AR$5001,ROWS(Fabrics!$A$1:G40),FALSE),\"\")","v":""}]
[null,null,null,null,null,{"$f":"IFERROR(INDEX(Fabrics!$C$2:$C$5001,SMALL(IF(F$19=Fabrics!$B$2:$B$5001,MATCH(ROW(Fabrics!$B$2:$B$5001),ROW(Fabrics!$B$2:$B5039)),\"\"),ROWS(Fabrics!$A$1:A39))),\"\")","v":""},{"$f":"IFERROR(VLOOKUP(G$19,Fabrics!$C$2:$AR$5001,ROWS(Fabrics!$A$1:A41),FALSE),\"\")","v":""},{"$f":"IFERROR(INDEX(Fabrics!$C$2:$C$5001,SMALL(IF(H$19=Fabrics!$B$2:$B$5001,MATCH(ROW(Fabrics!$B$2:$B$5001),ROW(Fabrics!$B$2:$B5039)),\"\"),ROWS(Fabrics!$A$1:C39))),\"\")","v":""},{"$f":"IFERROR(VLOOKUP(I$19,Fabrics!$C$2:$AR$5001,ROWS(Fabrics!$A$1:C41),FALSE),\"\")","v":""},{"$f":"IFERROR(INDEX(Fabrics!$C$2:$C$5001,SMALL(IF(J$19=Fabrics!$B$2:$B$5001,MATCH(ROW(Fabrics!$B$2:$B$5001),ROW(Fabrics!$B$2:$B5039)),\"\"),ROWS(Fabrics!$A$1:E39))),\"\")","v":""},{"$f":"IFERROR(VLOOKUP(K$19,Fabrics!$C$2:$AR$5001,ROWS(Fabrics!$A$1:E41),FALSE),\"\")","v":""},{"$f":"IFERROR(INDEX(Fabrics!$C$2:$C$5001,SMALL(IF(L$19=Fabrics!$B$2:$B$5001,MATCH(ROW(Fabrics!$B$2:$B$5001),ROW(Fabrics!$B$2:$B5039)),\"\"),ROWS(Fabrics!$A$1:G39))),\"\")","v":""},{"$f":"IFERROR(VLOOKUP(M$19,Fabrics!$C$2:$AR$5001,ROWS(Fabrics!$A$1:G41),FALSE),\"\")","v":""}]
[null,null,null,null,null,{"$f":"IFERROR(INDEX(Fabrics!$C$2:$C$5001,SMALL(IF(F$19=Fabrics!$B$2:$B$5001,MATCH(ROW(Fabrics!$B$2:$B$5001),ROW(Fabrics!$B$2:$B5040)),\"\"),ROWS(Fabrics!$A$1:A40))),\"\")","v":""},{"$f":"IFERROR(VLOOKUP(G$19,Fabrics!$C$2:$AR$5001,ROWS(Fabrics!$A$1:A42),FALSE),\"\")","v":""},{"$f":"IFERROR(INDEX(Fabrics!$C$2:$C$5001,SMALL(IF(H$19=Fabrics!$B$2:$B$5001,MATCH(ROW(Fabrics!$B$2:$B$5001),ROW(Fabrics!$B$2:$B5040)),\"\"),ROWS(Fabrics!$A$1:C40))),\"\")","v":""},{"$f":"IFERROR(VLOOKUP(I$19,Fabrics!$C$2:$AR$5001,ROWS(Fabrics!$A$1:C42),FALSE),\"\")","v":""},{"$f":"IFERROR(INDEX(Fabrics!$C$2:$C$5001,SMALL(IF(J$19=Fabrics!$B$2:$B$5001,MATCH(ROW(Fabrics!$B$2:$B$5001),ROW(Fabrics!$B$2:$B5040)),\"\"),ROWS(Fabrics!$A$1:E40))),\"\")","v":""},{"$f":"IFERROR(VLOOKUP(K$19,Fabrics!$C$2:$AR$5001,ROWS(Fabrics!$A$1:E42),FALSE),\"\")","v":""},{"$f":"IFERROR(INDEX(Fabrics!$C$2:$C$5001,SMALL(IF(L$19=Fabrics!$B$2:$B$5001,MATCH(ROW(Fabrics!$B$2:$B$5001),ROW(Fabrics!$B$2:$B5040)),\"\"),ROWS(Fabrics!$A$1:G40))),\"\")","v":""},{"$f":"IFERROR(VLOOKUP(M$19,Fabrics!$C$2:$AR$5001,ROWS(Fabrics!$A$1:G42),FALSE),\"\")","v":""}]